fUSD/lending_fUSD_20260224
["ID","MTS","AMOUNT","RATE_DAILY","PERIOD"]
[406558898,1771942244896,-516.36940547,0.0004545,28]
[406558899,1771942244906,-674.08642768,0.0004545,2]
[406558900,1771942244925,-276.75408394,0.0004545,2]
[406558901,1771942244938,-2163.23204914,0.0004545,2]
[406558902,1771942244951,-282.5696851,0.0004545,120]
[406558903,1771942244962,-600.0,0.00045479,120]
[406558904,1771942244978,-500.0,0.000455,10]
[406558905,1771942244988,-500.0,0.000455,30]
[406558906,1771942244999,-303.0,0.000455,30]
[406558907,1771942245010,-434.0,0.000455,30]
[406558908,1771942245024,-309.0,0.000455,30]
[406558909,1771942245035,-150.0,0.00045534,30]
[406558910,1771942245045,-150.0,0.00045534,30]
[406558911,1771942245054,-150.0,0.00045534,30]
[406558912,1771942245064,-150.0,0.00045534,30]
[406558913,1771942245073,-150.0,0.00045534,30]
[406558914,1771942245083,-150.0,0.00045534,30]
[406558915,1771942245092,-150.91920927,0.00045534,30]
[406558916,1771942245102,-150.0,0.00045534,30]
[406558917,1771942245111,-150.0,0.00045534,30]
[406558918,1771942245121,-150.0,0.00045534,30]
[406558919,1771942245130,-150.0,0.00045534,30]
[406558920,1771942245140,-179.74011802,0.0004554,7]
[406558921,1771942245150,-500.0,0.00045542,120]
[406558922,1771942245160,-500.0,0.00045542,120]
[406558923,1771942245170,-572.17,0.00045542,120]
[406558924,1771942245179,-572.17,0.00045542,120]
[406558925,1771942245188,-500.0,0.00045542,30]
[406558926,1771942245198,-500.0,0.00045542,30]
[406558927,1771942245208,-500.0,0.00045543,120]
[406558928,1771942245217,-500.0,0.00045543,120]
[406558929,1771942245228,-500.0,0.00045543,120]
[406558930,1771942245237,-500.0,0.00045543,120]
[406558931,1771942245247,-500.0,0.00045543,120]
[406558932,1771942245256,-500.0,0.00045543,120]
[406558933,1771942245266,-500.0,0.00045543,120]
[406558934,1771942245275,-500.0,0.00045543,120]
[406558935,1771942245284,-371.84,0.00045543,120]
[406558937,1771942245295,-572.17,0.00045543,120]
[406558938,1771942245305,-572.17,0.00045543,120]
[406558939,1771942245314,-572.17,0.00045543,120]
[406558940,1771942245323,-572.17,0.00045543,120]
[406558941,1771942245333,-572.17,0.00045543,120]
[406558942,1771942245343,-572.17,0.00045543,120]
[406558943,1771942245352,-572.17,0.00045543,120]
[406558945,1771942245361,-572.17,0.00045543,120]
[406558946,1771942245370,-572.17,0.00045543,120]
[406558947,1771942245379,-572.17,0.00045543,120]
[406558948,1771942245388,-572.17,0.00045543,120]
[406558949,1771942245397,-572.17,0.00045543,120]
[406558950,1771942245406,-572.17,0.00045543,120]
[406558951,1771942245415,-572.17,0.00045543,120]
[406558952,1771942245424,-572.17,0.00045543,120]
[406558953,1771942245434,-572.25,0.00045543,120]
[406558954,1771942245443,-500.0,0.00045543,30]
[406558955,1771942245452,-500.0,0.00045543,30]
[406558956,1771942245461,-500.0,0.00045543,30]
[406558957,1771942245471,-500.0,0.00045543,30]
[406558958,1771942245480,-500.0,0.00045543,30]
[406558959,1771942245489,-500.0,0.00045543,30]
[406558960,1771942245501,-500.0,0.00045543,30]
[406558961,1771942245510,-500.0,0.00045543,30]
[406558962,1771942245519,-300.0,0.00045549,30]
[406558963,1771942245528,-300.0,0.00045549,30]
[406558964,1771942245537,-300.0,0.00045549,30]
[406558965,1771942245546,-666.0,0.00045549,30]
[406558966,1771942245554,-993.60630424,0.0004555,120]
[406558967,1771942245563,-150145.72082016,0.0004555,56]
[406558973,1771942245970,-4888.41337277,0.0004555,56]
[406558974,1771942246023,-604.29639921,0.0004555,56]
[406558975,1771942246034,-1644.01663093,0.0004555,56]
[406558976,1771942246071,-7034.71989803,0.0004555,56]
[406558977,1771942246099,-726.73565402,0.00038671,2]
[406558978,1771942246500,-42041.36771608,0.00010398,2]
[406558979,1771942246579,-540.16205524,0.00010398,2]
[406558980,1771942247147,-5126.75951041,0.00010398,2]
[406558981,1771942247158,-1147.93978523,0.00010398,2]
[406558982,1771942277074,200.0,9.7e-05,3]
[406558983,1771942278875,500.0,9.8e-05,3]
[406558984,1771942280998,800.0,9.9e-05,3]
[406558985,1771942283123,1100.0,0.0001,3]
[406558986,1771942297860,-2498.3,0.0001019,2]
[406558987,1771942297891,-244.297,0.0001019,2]
[406558999,1771942570429,-1442.15469944,0.00010198,2]
[406559000,1771942600346,396.36,0.00018101,120]
[406559001,1771942615141,188.37979008,0.00010198,2]
[406559002,1771942618981,449.3909518,0.00010198,2]
[406559003,1771942624320,1189.0,0.000158,60]
[406559004,1771942637953,378.32151695,0.000101,2]
[406559005,1771942638012,606.64303391,0.000101,2]
[406559006,1771942638178,789.30024746,0.000101,2]
[406559007,1771942669214,333.32845423,0.00010198,2]
[406559008,1771942670049,798.7644472,0.00010198,2]
[406559040,1771942682832,3571.57215949,0.00010198,2]
[406559041,1771942682856,6667.59543304,0.00010198,2]
[406559042,1771942749423,2174.30576795,0.00010198,2]
[406559046,1771942797072,378.32151695,0.000101,2]
[406559047,1771942799550,222.21896948,0.00010198,2]
[406559048,1771942800444,532.50963146,0.00010198,2]
[406559049,1771942801392,1200.0,0.00010197,2]
[406559050,1771942802975,6826.11172836,0.00010198,2]
[406559051,1771942804334,234.0,0.00010198,2]
[406559052,1771942853633,1739.89827164,0.00010198,2]
[406559053,1771942853656,6952.53086834,0.00010198,2]
[406559054,1771942861762,300.0,0.00010197,2]
[406559055,1771942862205,150.0,0.00010197,2]
[406559071,1771942879457,1449.53717864,0.00010174,2]
[406559072,1771942892875,1147.94195302,9.994e-05,2]
[406559073,1771942892898,1577.00104698,9.994e-05,2]
[406559074,1771942893031,256.256,9.994e-05,2]
[406559075,1771942921811,300.0,0.00010197,2]
[406559076,1771942923199,4550.74115224,0.00010098,2]
[406559077,1771942929924,222.21896947,0.00010098,2]
[406559083,1771942930667,355.00642098,0.00010098,2]
[406559094,1771942951162,220.248153,0.00010044,2]
[406559095,1771942952880,345.05758646,0.00010197,2]
[406559096,1771942953018,185.30690951,0.00010197,2]
[406559097,1771942953429,500.0,0.00010197,2]
[406559098,1771942953480,500.0,0.00010197,2]
[406559099,1771942953552,500.0,0.00010197,2]
[406559100,1771942953670,426.57939893,0.00010197,2]
[406559101,1771942957037,500.0,0.00010197,2]
[406559102,1771942957087,500.0,0.00010197,2]
[406559103,1771942957120,500.0,0.00010197,2]
[406559104,1771942957153,500.0,0.00010197,2]
[406559105,1771942957188,500.0,0.00010197,2]
[406559106,1771942957223,640.9,0.00010197,2]
[406559107,1771942957260,500.0,0.00010197,2]
[406559108,1771942957289,500.0,0.00010197,2]
[406559109,1771942957323,500.0,0.00010197,2]
[406559110,1771942957352,500.0,0.00010197,2]
[406559111,1771942957394,500.0,0.00010197,2]
[406559112,1771942957459,491.65734576,0.00010197,2]
[406559113,1771942957488,500.0,0.00010197,2]
[406559114,1771942957536,113.03521589,0.00010197,2]
[406559115,1771942957564,386.96478411,0.00010197,2]
[406559116,1771942957598,500.0,0.00010197,2]
[406559117,1771942957628,500.0,0.00010197,2]
[406559118,1771942957661,500.0,0.00010197,2]
[406559119,1771942957700,500.0,0.00010197,2]
[406559120,1771942957734,500.0,0.00010197,2]
[406559121,1771942957794,500.0,0.00010197,2]
[406559122,1771942957842,500.0,0.00010197,2]
[406559123,1771942957875,500.0,0.00010197,2]
[406559124,1771942957909,500.0,0.00010197,2]
[406559125,1771942957972,500.0,0.00010197,2]
[406559126,1771942958061,500.0,0.00010197,2]
[406559127,1771942958106,500.0,0.00010197,2]
[406559128,1771942958142,500.0,0.00010197,2]
[406559129,1771942958195,500.0,0.00010197,2]
[406559130,1771942958298,500.0,0.00010197,2]
[406559131,1771942958395,500.0,0.00010197,2]
[406559132,1771942958690,500.0,0.00010197,2]
[406559133,1771942958741,500.0,0.00010197,2]
[406559134,1771942958792,500.0,0.00010197,2]
[406559135,1771942987483,500.0,0.00010098,2]
[406559136,1771943009812,966.35811908,0.00010098,2]
[406559137,1771943025328,577.85202162,0.00010098,2]
[406559139,1771943042387,150.0,0.00010197,2]
[406559140,1771943043401,3033.82743482,0.00010098,2]
[406559141,1771943048847,2500.0,0.00010098,2]
[406559142,1771943050266,222.21896947,0.00010098,2]
[406559143,1771943060991,236.67094732,0.00010098,2]
[406559144,1771943092293,500.0,0.00010197,2]
[406559145,1771943092407,500.0,0.00010197,2]
[406559146,1771943092501,348.60557925,0.00010197,2]
[406559147,1771943096330,10000.01,0.00010188,2]
[406559148,1771943096354,1566.2189354,0.00010188,2]
[406559149,1771943101878,1200.0,0.00010197,2]
[406559150,1771943132050,6740.8241,0.00010098,2]
[406559151,1771943134667,460.1,0.00010197,2]
[406559152,1771943140324,644.23874606,0.00010098,2]
[406559155,1771943163641,954.84715394,0.00010098,2]
[406559156,1771943163664,1067.70446928,0.00010098,2]
[406559157,1771943176321,8932.30553072,0.00010098,2]
[406559158,1771943176348,10000.01,0.00010098,2]
[406559159,1771943176374,10000.01,0.00010098,2]
[406559160,1771943191797,157.78063154,0.00010098,2]
[406559161,1771943191887,500.0,0.00010097,2]
[406559162,1771943191958,444.02390548,0.00010097,2]
[406559163,1771943205149,339.07700434,0.00010098,2]
[406559165,1771943222054,300.0,0.00010097,2]
[406559166,1771943222227,150.0,0.00010097,2]
[406559167,1771943226950,241.54031052,0.00010097,2]
[406559172,1771943241880,500.0,0.00010097,2]
[406559173,1771943241938,500.0,0.00010097,2]
[406559174,1771943242010,500.0,0.00010097,2]
[406559175,1771943242056,500.0,0.00010097,2]
[406559176,1771943242097,500.0,0.00010097,2]
[406559177,1771943242137,500.0,0.00010097,2]
[406559178,1771943242183,500.0,0.00010097,2]
[406559179,1771943242224,249.16573458,0.00010097,2]
[406559180,1771943242280,500.0,0.00010097,2]
[406559192,1771943270444,429.49249738,9.998e-05,2]
[406559194,1771943283934,1348.3677488,9.998e-05,2]
[406559198,1771943321606,157.78063153,9.998e-05,2]
[406559206,1771943355185,1682.78153583,9.998e-05,2]
[406559207,1771943355208,2448.43126417,9.998e-05,2]
[406559208,1771943361445,7551.57873583,9.998e-05,2]
[406559209,1771943361467,10000.01,9.998e-05,2]
[406559210,1771943361489,10000.01,9.998e-05,2]
[406559211,1771943361511,10000.01,9.998e-05,2]
[406559212,1771943361533,697.06116417,9.998e-05,2]
[406559213,1771943363303,5311.0,0.000158,60]
[406559214,1771943385456,353.59415935,0.000158,60]
[406559215,1771943385482,2100.0,0.000158,60]
[406559216,1771943401007,286.32833158,9.998e-05,2]
[406559217,1771943401297,1200.0,0.00010097,2]
[406559218,1771943402495,150.0,0.00010097,2]
[406559219,1771943403398,150.0,0.0001172,7]
[406559220,1771943404155,898.91183254,9.998e-05,2]
[406559221,1771943404362,233.0,0.00010098,2]
[406559222,1771943421478,408.32664987,0.00010088,2]
[406559250,1771943431976,-1372554.84960755,0.00010098,2]
[406559251,1771943431988,-7150.40586809,0.00010098,2]
[406559252,1771943432000,-7256.67513225,0.00010098,2]
[406559253,1771943432012,-91693.96593831,0.00010098,2]
[406559254,1771943432027,-291.65158265,0.00010098,2]
[406559255,1771943432058,-2455.00822431,0.00010098,2]
[406559256,1771943435578,385.23468108,9.998e-05,2]
[406559259,1771943437630,-13825.59121332,0.00010098,2]
[406559260,1771943437642,-1975839.5269028,0.00010098,2]
[406559261,1771943437651,-2500.0,0.00010098,2]
[406559262,1771943437660,-250.0,0.00010131,2]
[406559263,1771943437670,-24049.16,0.00010164,2]
[406559264,1771943437679,-250.0,0.00010175,2]
[406559265,1771943437688,-408.32664987,0.00010188,2]
[406559266,1771943437697,-151.0,0.00010198,2]
[406559267,1771943437707,-151.0,0.00010198,2]
[406559268,1771943437716,-151.0,0.00010198,2]
[406559269,1771943437727,-151.0,0.00010198,2]
[406559270,1771943437736,-151.0,0.00010198,2]
[406559271,1771943437746,-151.0,0.00010198,2]
[406559272,1771943437755,-151.0,0.00010198,2]
[406559273,1771943437764,-151.0,0.00010198,2]
[406559274,1771943437774,-151.0,0.00010198,2]
[406559275,1771943437783,-151.0,0.00010198,2]
[406559276,1771943437792,-151.0,0.00010198,2]
[406559277,1771943437801,-151.0,0.00010198,2]
[406559278,1771943437811,-151.0,0.00010198,2]
[406559279,1771943437819,-151.0,0.00010198,2]
[406559280,1771943437828,-279.15108898,0.00010198,2]
[406559281,1771943437837,-341435.3857,0.00010198,2]
[406559282,1771943437847,-1205.9102,0.00010198,2]
[406559283,1771943437856,-4352.77,0.00010219,2]
[406559284,1771943437865,-3995.0,0.00010274,2]
[406559285,1771943437875,-2362.0,0.00010274,2]
[406559286,1771943437884,-4263.61,0.00010279,2]
[406559287,1771943437894,-1015.11,0.00010292,2]
[406559288,1771943437904,-484.10314846,0.00010298,2]
[406559289,1771943437914,-5457.16330033,0.00010298,2]
[406559290,1771943437926,-1000.0,0.00010298,2]
[406559291,1771943437936,-10000.0,0.00010298,2]
[406559292,1771943437946,-1015.11,0.00010566,2]
[406559293,1771943437954,-500.0,0.00010573,2]
[406559294,1771943437964,-500.0,0.00010573,2]
[406559295,1771943437973,-500.0,0.00010573,2]
[406559296,1771943437982,-500.0,0.00010573,2]
[406559297,1771943437991,-500.0,0.00010573,2]
[406559298,1771943438000,-500.0,0.00010573,2]
[406559299,1771943438010,-500.0,0.00010573,2]
[406559300,1771943438019,-500.0,0.00010573,2]
[406559301,1771943438029,-500.0,0.00010573,2]
[406559302,1771943438038,-500.0,0.00010573,2]
[406559304,1771943438048,-500.0,0.00010573,2]
[406559305,1771943438057,-500.0,0.00010573,2]
[406559306,1771943438067,-500.0,0.00010573,2]
[406559307,1771943438077,-19912.52,0.00010767,2]
[406559308,1771943438086,-393.0,0.00010782,2]
[406559309,1771943438096,-4234.36,0.000108,2]
[406559310,1771943438105,-499.99,0.000108,2]
[406559311,1771943438115,-9999.99,0.000108,2]
[406559312,1771943438125,-150.99,0.000108,2]
[406559313,1771943438134,-3838.62,0.000108,2]
[406559314,1771943438144,-299.99,0.000108,2]
[406559315,1771943438154,-306.28,0.000108,2]
[406559316,1771943438163,-4999.99,0.000108,2]
[406559317,1771943438175,-9999.99,0.000108,2]
[406559318,1771943438193,-999.99,0.000108,2]
[406559319,1771943438203,-150.99,0.000108,2]
[406559320,1771943438215,-1185.85,0.000108,2]
[406559321,1771943438225,-9999.99,0.000108,2]
[406559322,1771943438234,-9999.99,0.000108,2]
[406559323,1771943438244,-9999.99,0.000108,2]
[406559324,1771943438255,-500.0,0.000108,2]
[406559325,1771943438264,-699.99,0.000108,2]
[406559326,1771943438273,-600.0,0.000108,2]
[406559327,1771943438283,-600.0,0.000108,2]
[406559328,1771943438293,-600.0,0.000108,2]
[406559329,1771943438302,-600.0,0.000108,2]
[406559330,1771943438312,-600.0,0.000108,2]
[406559331,1771943438321,-600.0,0.000108,2]
[406559332,1771943438331,-600.0,0.000108,2]
[406559333,1771943438340,-800.0,0.000108,2]
[406559334,1771943438350,-600.0,0.000108,2]
[406559335,1771943438359,-800.0,0.000108,2]
[406559336,1771943438369,-500.0,0.000108,2]
[406559337,1771943438378,-500.0,0.000108,2]
[406559338,1771943438387,-600.0,0.000108,2]
[406559339,1771943438397,-800.0,0.000108,2]
[406559340,1771943438406,-500.0,0.000108,2]
[406559341,1771943438416,-610.81241278,0.000108,2]
[406559342,1771943438425,-500.0,0.000108,2]
[406559343,1771943438434,-600.0,0.000108,2]
[406559344,1771943438444,-500.0,0.000108,2]
[406559345,1771943438453,-800.0,0.000108,2]
[406559346,1771943438463,-500.0,0.000108,2]
[406559347,1771943438473,-500.0,0.000108,2]
[406559348,1771943438483,-500.0,0.000108,2]
[406559349,1771943438492,-501.33994508,0.000108,2]
[406559350,1771943438502,-600.0,0.000108,2]
[406559351,1771943438512,-800.0,0.000108,2]
[406559352,1771943438521,-500.0,0.000108,2]
[406559353,1771943438530,-500.0,0.000108,2]
[406559354,1771943438539,-500.0,0.000108,2]
[406559355,1771943438548,-600.0,0.000108,2]
[406559356,1771943438558,-500.0,0.000108,2]
[406559357,1771943438567,-800.0,0.000108,2]
[406559358,1771943438576,-500.0,0.000108,2]
[406559359,1771943438585,-500.0,0.000108,2]
[406559360,1771943438595,-1100.0,0.000108,2]
[406559361,1771943438605,-500.0,0.000108,2]
[406559362,1771943438615,-800.0,0.000108,2]
[406559363,1771943438624,-500.0,0.000108,2]
[406559364,1771943438634,-500.0,0.000108,2]
[406559365,1771943438643,-500.0,0.000108,2]
[406559366,1771943438653,-800.0,0.000108,2]
[406559367,1771943438663,-500.0,0.000108,2]
[406559368,1771943438672,-704.38882443,0.000108,2]
[406559369,1771943438682,-1600.0,0.000108,2]
[406559370,1771943438692,-500.71112286,0.000108,2]
[406559371,1771943438702,-800.0,0.000108,2]
[406559372,1771943438711,-500.0,0.000108,2]
[406559373,1771943438721,-500.0,0.000108,2]
[406559374,1771943438730,-1600.0,0.000108,2]
[406559375,1771943438740,-500.0,0.000108,2]
[406559376,1771943438750,-800.0,0.000108,2]
[406559377,1771943438764,-889.732786,0.000108,2]
[406559378,1771943438774,-1600.0,0.000108,2]
[406559379,1771943438784,-800.0,0.000108,2]
[406559380,1771943438793,-500.0,0.000108,2]
[406559381,1771943438803,-1600.0,0.000108,2]
[406559382,1771943438813,-800.0,0.000108,2]
[406559383,1771943438822,-500.0,0.000108,2]
[406559384,1771943438832,-1600.0,0.000108,2]
[406559385,1771943438841,-800.0,0.000108,2]
[406559386,1771943438851,-500.0,0.000108,2]
[406559387,1771943438860,-500.0,0.000108,2]
[406559388,1771943438870,-1600.0,0.000108,2]
[406559389,1771943438880,-500.0,0.000108,2]
[406559390,1771943438890,-1068.51170222,0.000108,2]
[406559391,1771943438900,-500.0,0.000108,2]
[406559392,1771943438910,-500.0,0.000108,2]
[406559393,1771943438920,-500.0,0.000108,2]
[406559394,1771943438931,-1600.0,0.000108,2]
[406559395,1771943438940,-500.0,0.000108,2]
[406559396,1771943438950,-500.0,0.000108,2]
[406559397,1771943438960,-500.0,0.000108,2]
[406559398,1771943438970,-500.0,0.000108,2]
[406559399,1771943438979,-500.0,0.000108,2]
[406559400,1771943438989,-1600.0,0.000108,2]
[406559401,1771943438998,-500.0,0.000108,2]
[406559402,1771943439008,-500.0,0.000108,2]
[406559403,1771943439017,-1600.0,0.000108,2]
[406559404,1771943439026,-500.0,0.000108,2]
[406559405,1771943439036,-918.40902476,0.000108,2]
[406559406,1771943439046,-801.1773829,0.000108,2]
[406559407,1771943439055,-1600.0,0.000108,2]
[406559408,1771943439065,-500.0,0.000108,2]
[406559409,1771943439075,-500.0,0.000108,2]
[406559410,1771943439084,-500.0,0.000108,2]
[406559411,1771943439094,-1600.0,0.000108,2]
[406559412,1771943439103,-500.0,0.000108,2]
[406559413,1771943439114,-500.0,0.000108,2]
[406559414,1771943439124,-1600.0,0.000108,2]
[406559415,1771943439133,-500.0,0.000108,2]
[406559416,1771943439142,-1600.0,0.000108,2]
[406559417,1771943439151,-500.0,0.000108,2]
[406559418,1771943439160,-500.0,0.000108,2]
[406559419,1771943439169,-1818.2084599,0.000108,2]
[406559420,1771943439179,-500.0,0.000108,2]
[406559421,1771943439188,-500.0,0.000108,2]
[406559422,1771943439198,-500.0,0.000108,2]
[406559423,1771943439212,-823.91748752,0.000108,2]
[406559424,1771943439227,-500.0,0.000108,2]
[406559425,1771943439241,-500.0,0.000108,2]
[406559426,1771943439251,-500.0,0.000108,2]
[406559427,1771943439261,-1015.11,0.0001084,2]
[406559428,1771943439270,-642.86545886,0.00010848,2]
[406559429,1771943439282,-201.0,0.00010876,2]
[406559430,1771943439292,-500.0,0.00011074,2]
[406559431,1771943439302,-307.0,0.00011098,2]
[406559432,1771943439311,-168.0,0.00011098,2]
[406559433,1771943439321,-27854.77455992,0.00011099,2]
[406559434,1771943439331,-27854.77455985,0.00011099,2]
[406559435,1771943439340,-33689.79686267,0.00011099,2]
[406559436,1771943439349,-33689.79686262,0.00011099,2]
[406559437,1771943439359,-1680.0,0.00011107,2]
[406559438,1771943439368,-255.0,0.00011107,2]
[406559439,1771943439378,-2500.0,0.00011108,2]
[406559440,1771943439387,-5000.0,0.00011108,2]
[406559441,1771943439396,-5000.0,0.00011108,2]
[406559442,1771943439406,-5000.0,0.00011108,2]
[406559443,1771943439415,-5000.0,0.00011108,2]
[406559444,1771943439424,-5000.0,0.00011108,2]
[406559445,1771943439434,-2500.0,0.00011108,2]
[406559446,1771943439444,-2500.0,0.00011108,2]
[406559447,1771943439453,-2500.0,0.00011108,2]
[406559448,1771943439463,-2500.0,0.00011108,2]
[406559449,1771943439473,-250.0,0.00011108,2]
[406559450,1771943439482,-300.0,0.00011108,2]
[406559451,1771943439493,-300.0,0.00011108,2]
[406559453,1771943439706,-300.0,0.00011108,2]
[406559454,1771943439716,-300.0,0.00011108,2]
[406559455,1771943439726,-300.0,0.00011108,2]
[406559456,1771943439735,-300.362096,0.00011108,2]
[406559457,1771943439744,-1015.11,0.00011114,2]
[406559458,1771943439754,-240.0,0.0001112,2]
[406559459,1771943439763,-776.82336401,0.00011121,2]
[406559460,1771943439773,-550.01264972,0.00011121,2]
[406559461,1771943439781,-1000.0,0.00011121,2]
[406559462,1771943439790,-501.70650637,0.00011121,2]
[406559463,1771943439799,-1000.0,0.00011121,2]
[406559467,1771943439809,-1000.0,0.00011121,2]
[406559469,1771943439818,-1002.25561136,0.00011121,2]
[406559470,1771943439827,-501.90132287,0.00011121,2]
[406559471,1771943439836,-235.93365693,0.00011121,2]
[406559473,1771943439846,-328.54094648,0.00011121,2]
[406559474,1771943439857,-1000.0,0.00011121,2]
[406559475,1771943439866,-1000.0,0.00011121,2]
[406559476,1771943439875,-1000.0,0.00011121,2]
[406559477,1771943439886,-197.0,0.00011121,2]
[406559478,1771943439896,-432.0,0.00011142,2]
[406559479,1771943439905,-1500.0,0.00011222,2]
[406559480,1771943439915,-1451.0,0.00011289,2]
[406559481,1771943439925,-618.6685762,0.00011324,2]
[406559482,1771943439933,-500.0,0.00011348,2]
[406559483,1771943439942,-150.0,0.00011385,2]
[406559484,1771943439952,-1015.11,0.00011388,2]
[406559485,1771943439960,-33689.79686262,0.00011566,2]
[406559486,1771943439969,-500.0,0.00011622,2]
[406559487,1771943439979,-1015.11,0.00011662,2]
[406559488,1771943439988,-871.93707751,0.00011668,2]
[406559489,1771943439998,-527.71923747,0.00011668,2]
[406559490,1771943440007,-1500.0,0.00011668,2]
[406559491,1771943440015,-1500.0,0.00011668,2]
[406559492,1771943440024,-1500.0,0.00011668,2]
[406559493,1771943440035,-1500.0,0.00011668,2]
[406559494,1771943440044,-1200.0,0.00011679,2]
[406559495,1771943440053,-547.0,0.00011703,2]
[406559496,1771943440063,-27854.77455985,0.00011711,2]
[406559497,1771943440072,-500.0,0.00011896,2]
[406559498,1771943440084,-1015.11,0.00011936,2]
[406559499,1771943440094,-500.0,0.0001217,2]
[406559500,1771943440104,-1015.12950757,0.0001221,2]
[406559501,1771943440114,-503.87713345,0.00012216,2]
[406559502,1771943440124,-2000.0,0.00012216,2]
[406559503,1771943440133,-2000.0,0.00012216,2]
[406559504,1771943440141,-2000.0,0.00012216,2]
[406559505,1771943440150,-2351.0,0.00012217,2]
[406559506,1771943440160,-433.0,0.00012217,2]
[406559507,1771943440169,-33689.79686262,0.00012349,2]
[406559508,1771943440177,-500.0,0.00012444,2]
[406559509,1771943440186,-27854.77455985,0.00012568,2]
[406559510,1771943440196,-150.0,0.00012678,2]
[406559511,1771943440207,-500.0,0.00012718,2]
[406559512,1771943440216,-283.0,0.00012719,2]
[406559513,1771943440225,-391.36,0.00012758,2]
[406559514,1771943440235,-374.73958587,0.00012764,2]
[406559515,1771943440245,-2500.0,0.00012764,2]
[406559516,1771943440254,-2500.0,0.00012764,2]
[406559517,1771943440262,-500.0,0.00012992,2]
[406559518,1771943440271,-33689.79686262,0.00013133,2]
[406559519,1771943440282,-600.0,0.0001321,2]
[406559520,1771943440291,-600.0,0.0001321,2]
[406559521,1771943440302,-500.0,0.0001321,2]
[406559522,1771943440311,-600.0,0.0001321,2]
[406559523,1771943440320,-500.0,0.0001321,2]
[406559524,1771943440329,-600.0,0.0001321,2]
[406559525,1771943440338,-500.0,0.0001321,2]
[406559526,1771943440347,-600.0,0.0001321,2]
[406559527,1771943440356,-600.0,0.0001321,2]
[406559528,1771943440366,-800.0,0.0001321,2]
[406559529,1771943440375,-600.0,0.0001321,2]
[406559530,1771943440384,-600.0,0.0001321,2]
[406559531,1771943440393,-800.0,0.0001321,2]
[406559532,1771943440402,-800.0,0.0001321,2]
[406559533,1771943440411,-600.0,0.0001321,2]
[406559534,1771943440420,-600.0,0.0001321,2]
[406559535,1771943440429,-800.0,0.0001321,2]
[406559536,1771943440438,-600.0,0.0001321,2]
[406559538,1771943440448,-800.0,0.0001321,2]
[406559540,1771943440457,-600.0,0.0001321,2]
[406559541,1771943440466,-800.0,0.0001321,2]
[406559542,1771943440475,-600.0,0.0001321,2]
[406559543,1771943440484,-800.0,0.0001321,2]
[406559544,1771943440492,-500.0,0.0001321,2]
[406559545,1771943440501,-500.0,0.0001321,2]
[406559546,1771943440510,-800.0,0.0001321,2]
[406559547,1771943440519,-500.0,0.0001321,2]